[Event "Titled Tuesday Blitz August 24 2021"]
[White "Ulko, Jaroslav"]
[Black "Omariev, Maksim"]
[WhiteFideId "4116658"]
[BlackFideId "4193423"]
[WhiteElo "2304"]
[BlackElo "2433"]
[Result "1-0"]
[Round "06"]
[TimeControl "180+1"]
[Date "2021.08.24"]
[WhiteClock "0:00:10"]
[BlackClock "0:00:02"]

1. d4 {[%clk 0:03:00]}  d5 {[%clk 0:02:59]} 2. c4 {[%clk 0:02:55]}  c6 {[%clk 0:02:59]} 3. Nf3 {[%clk 0:02:55]}  Nf6 {[%clk 0:02:59]} 4. Nc3 {[%clk 0:02:54]}  g6 {[%clk 0:02:59]} 5. cxd5 {[%clk 0:02:53]}  cxd5 {[%clk 0:02:59]} 6. Bf4 {[%clk 0:02:53]}  Bg7 {[%clk 0:02:58]} 7. e3 {[%clk 0:02:53]}  O-O {[%clk 0:02:58]} 8. h3 {[%clk 0:02:53]}  Nc6 {[%clk 0:02:54]} 9. Bd3 {[%clk 0:02:52]}  Bf5 {[%clk 0:02:52]} 10. Bxf5 {[%clk 0:02:51]}  gxf5 {[%clk 0:02:53]} 11. O-O {[%clk 0:02:51]}  e6 {[%clk 0:02:49]} 12. Rc1 {[%clk 0:02:41]}  Rc8 {[%clk 0:02:46]} 13. Ne5 {[%clk 0:02:32]}  Nxe5 {[%clk 0:02:40]} 14. Bxe5 {[%clk 0:02:32]}  Ne4 {[%clk 0:02:35]} 15. Nxe4 {[%clk 0:02:28]}  fxe4 {[%clk 0:02:28]} 16. Qg4 {[%clk 0:02:25]}  f6 {[%clk 0:02:18]} 17. Qxe6+ {[%clk 0:02:24]}  Kh8 {[%clk 0:02:18]} 18. Bf4 {[%clk 0:02:16]}  Re8 {[%clk 0:02:04]} 19. Rxc8 {[%clk 0:02:13]}  Qxc8 {[%clk 0:02:04]} 20. Qxd5 {[%clk 0:02:12]}  b6 {[%clk 0:02:02]} 21. Kh2 {[%clk 0:01:50]}  Qc2 {[%clk 0:01:56]} 22. b4 {[%clk 0:01:29]}  Rc8 {[%clk 0:01:51]} 23. b5 {[%clk 0:00:58]}  Qc4 {[%clk 0:01:35]} 24. Qf5 {[%clk 0:00:55]}  Rd8 {[%clk 0:01:12]} 25. Kg1 {[%clk 0:00:48]}  Re8 {[%clk 0:00:57]} 26. Qd7 {[%clk 0:00:46]}  Rg8 {[%clk 0:00:53]} 27. Qxa7 {[%clk 0:00:40]}  Qxb5 {[%clk 0:00:53]} 28. Rc1 {[%clk 0:00:39]}  Bf8 {[%clk 0:00:40]} 29. Rc7 {[%clk 0:00:35]}  Qh5 {[%clk 0:00:33]} 30. Bg3 {[%clk 0:00:17]}  b5 {[%clk 0:00:10]} 31. Qb7 {[%clk 0:00:14]}  Ba3 {[%clk 0:00:06]} 32. Qxe4 {[%clk 0:00:12]}  Bf8 {[%clk 0:00:03]} 33. Kh2 {[%clk 0:00:12]}  b4 {[%clk 0:00:03]} 34. Rb7 {[%clk 0:00:11]}  Bg7 {[%clk 0:00:02]} 35. Rb8 {[%clk 0:00:11]}  Rxb8 {[%clk 0:00:01]} 36. Bxb8 {[%clk 0:00:11]}  Bf8 {[%clk 0:00:01]} 37. Bg3 {[%clk 0:00:11]}  Kg7 {[%clk 0:00:01]} 38. Qb7+ {[%clk 0:00:11]}  Kg8 {[%clk 0:00:02]} 39. Qd7 {[%clk 0:00:10]}  Qg6 {[%clk 0:00:01]} 40. Qd5+ {[%clk 0:00:10]}  Kh8 {[%clk 0:00:01]} 41. Qe6 {[%clk 0:00:09]}  Qc2 {[%clk 0:00:01]} 42. Qxf6+ {[%clk 0:00:09]}  Kg8 {[%clk 0:00:02]} 43. Qe6+ {[%clk 0:00:09]}  Kh8 {[%clk 0:00:02]} 44. Be5+ {[%clk 0:00:09]}  Bg7 {[%clk 0:00:02]} 45. Qe8# {[%clk 0:00:10]} 1-0


[Site "https://www.chess.com"]

[Event "Titled Tuesday Blitz August 24 2021"]
[White "Weetik, Vjacheslav"]
[Black "Bortnyk, Olexandr"]
[WhiteFideId "4153472"]
[BlackFideId "14120828"]
[WhiteElo "2469"]
[BlackElo "2723"]
[Result "1-0"]
[Round "06"]
[TimeControl "180+1"]
[Date "2021.08.24"]
[WhiteClock "0:00:05"]
[BlackClock "0:00:02"]

1. e4 {[%clk 0:03:00]}  Nf6 {[%clk 0:03:00]} 2. e5 {[%clk 0:03:01]}  Nd5 {[%clk 0:03:01]} 3. d4 {[%clk 0:03:01]}  d6 {[%clk 0:03:01]} 4. Nf3 {[%clk 0:03:02]}  dxe5 {[%clk 0:03:02]} 5. Nxe5 {[%clk 0:03:02]}  g6 {[%clk 0:03:03]} 6. c4 {[%clk 0:02:56]}  Nf6 {[%clk 0:02:54]} 7. Nc3 {[%clk 0:02:54]}  Bg7 {[%clk 0:02:54]} 8. Be3 {[%clk 0:02:50]}  O-O {[%clk 0:02:54]} 9. Be2 {[%clk 0:02:29]}  c6 {[%clk 0:02:44]} 10. O-O {[%clk 0:02:23]}  Nbd7 {[%clk 0:02:26]} 11. f4 {[%clk 0:02:23]}  Qa5 {[%clk 0:02:24]} 12. Qd2 {[%clk 0:02:17]}  Rd8 {[%clk 0:02:20]} 13. Qe1 {[%clk 0:01:56]}  Nxe5 {[%clk 0:02:04]} 14. fxe5 {[%clk 0:01:56]}  Ng4 {[%clk 0:02:05]} 15. Bxg4 {[%clk 0:01:56]}  Bxg4 {[%clk 0:02:06]} 16. Qh4 {[%clk 0:01:55]}  Be6 {[%clk 0:02:06]} 17. Qxe7 {[%clk 0:01:26]}  Bxc4 {[%clk 0:01:59]} 18. Rf3 {[%clk 0:01:26]}  c5 {[%clk 0:01:31]} 19. d5 {[%clk 0:01:18]}  Rf8 {[%clk 0:01:17]} 20. Qxc5 {[%clk 0:00:45]}  Qxc5 {[%clk 0:01:08]} 21. Bxc5 {[%clk 0:00:46]}  Rfe8 {[%clk 0:01:00]} 22. Bd6 {[%clk 0:00:20]}  Bxe5 {[%clk 0:00:56]} 23. Bxe5 {[%clk 0:00:20]}  Rxe5 {[%clk 0:00:57]} 24. Rd1 {[%clk 0:00:21]}  Rae8 {[%clk 0:00:46]} 25. Rd4 {[%clk 0:00:20]}  Ba6 {[%clk 0:00:40]} 26. d6 {[%clk 0:00:20]}  f5 {[%clk 0:00:37]} 27. Nd5 {[%clk 0:00:18]}  Re1+ {[%clk 0:00:24]} 28. Kf2 {[%clk 0:00:18]}  R1e2+ {[%clk 0:00:25]} 29. Kg3 {[%clk 0:00:18]}  Rd8 {[%clk 0:00:26]} 30. Nc7 {[%clk 0:00:14]}  Rxb2 {[%clk 0:00:18]} 31. Ne6 {[%clk 0:00:05]}  Rd7 {[%clk 0:00:07]} 32. Nc5 {[%clk 0:00:05]}  Rd8 {[%clk 0:00:06]} 33. Ne6 {[%clk 0:00:06]}  Rd7 {[%clk 0:00:04]} 34. Nc5 {[%clk 0:00:06]}  Rd8 {[%clk 0:00:03]} 35. Re3 {[%clk 0:00:07]}  Bb5 {[%clk 0:00:02]} 36. Ne6 {[%clk 0:00:05]}  Rd7 {[%clk 0:00:02]} 37. Nc5 {[%clk 0:00:06]}  Rd8 {[%clk 0:00:01]} 38. Re7 {[%clk 0:00:05]}  Bc6 {[%clk 0:00:01]} 39. Ne6 {[%clk 0:00:05]}  Rxg2+ {[%clk 0:00:02]} 40. Kf4 {[%clk 0:00:05]}  Rd7 {[%clk 0:00:03]} 41. Ke5 {[%clk 0:00:04]}  Re2+ {[%clk 0:00:02]} 42. Kf6 {[%clk 0:00:04]}  Rxe7 {[%clk 0:00:03]} 43. dxe7 {[%clk 0:00:05]}  Rxe6+ {[%clk 0:00:01]} 44. Kxe6 {[%clk 0:00:05]}  Kg7 {[%clk 0:00:02]} 45. Rd8 {[%clk 0:00:05]}  f4 {[%clk 0:00:02]} 46. e8=Q {[%clk 0:00:05]}  Bxe8 {[%clk 0:00:03]} 47. Rxe8 {[%clk 0:00:06]}  f3 {[%clk 0:00:01]} 48. Rd8 {[%clk 0:00:06]}  g5 {[%clk 0:00:01]} 49. Kf5 {[%clk 0:00:05]}  h5 {[%clk 0:00:01]} 50. Kxg5 {[%clk 0:00:05]}  f2 {[%clk 0:00:02]} 51. Rd1 {[%clk 0:00:05]}  Kf7 {[%clk 0:00:02]} 52. Rf1 {[%clk 0:00:05]} 1-0


[Site "https://www.chess.com"]

[Event "Titled Tuesday Blitz August 24 2021"]
[White "Yaran, Siar"]
[Black "Kubicka, Anna"]
[WhiteFideId "6323006"]
[BlackFideId "1152254"]
[WhiteElo "1977"]
[BlackElo "2010"]
[Result "1-0"]
[Round "06"]
[TimeControl "180+1"]
[Date "2021.08.24"]
[WhiteClock "0:00:21"]
[BlackClock "0:01:14"]

1. e4 {[%clk 0:03:00]}  c5 {[%clk 0:02:45]} 2. Nf3 {[%clk 0:02:54]}  d6 {[%clk 0:02:45]} 3. d4 {[%clk 0:02:54]}  cxd4 {[%clk 0:02:46]} 4. Nxd4 {[%clk 0:02:54]}  Nf6 {[%clk 0:02:46]} 5. Nc3 {[%clk 0:02:55]}  a6 {[%clk 0:02:47]} 6. Bg5 {[%clk 0:02:55]}  Nbd7 {[%clk 0:02:43]} 7. Bc4 {[%clk 0:02:54]}  Qa5 {[%clk 0:02:39]} 8. Qd2 {[%clk 0:02:40]}  h6 {[%clk 0:02:37]} 9. Bh4 {[%clk 0:02:33]}  e6 {[%clk 0:02:33]} 10. O-O {[%clk 0:02:27]}  Be7 {[%clk 0:02:32]} 11. Kh1 {[%clk 0:02:20]}  O-O {[%clk 0:02:32]} 12. Rae1 {[%clk 0:02:17]}  Ne5 {[%clk 0:02:25]} 13. Bb3 {[%clk 0:02:16]}  Nc6 {[%clk 0:02:24]} 14. f4 {[%clk 0:02:06]}  Nxd4 {[%clk 0:02:24]} 15. Qxd4 {[%clk 0:02:05]}  e5 {[%clk 0:02:25]} 16. fxe5 {[%clk 0:01:49]}  dxe5 {[%clk 0:02:25]} 17. Qe3 {[%clk 0:01:49]}  Ng4 {[%clk 0:02:21]} 18. Qg3 {[%clk 0:01:26]}  Bxh4 {[%clk 0:02:19]} 19. Qxh4 {[%clk 0:01:25]}  Qd8 {[%clk 0:02:20]} 20. Bxf7+ {[%clk 0:01:18]}  Kh8 {[%clk 0:02:18]} 21. Qxd8 {[%clk 0:01:12]}  Rxd8 {[%clk 0:02:19]} 22. h3 {[%clk 0:01:08]}  Nf6 {[%clk 0:02:18]} 23. Nd5 {[%clk 0:01:09]}  Nxd5 {[%clk 0:02:15]} 24. exd5 {[%clk 0:01:08]}  Bd7 {[%clk 0:02:09]} 25. Rxe5 {[%clk 0:01:06]}  Bb5 {[%clk 0:02:09]} 26. Rf4 {[%clk 0:01:01]}  Rf8 {[%clk 0:02:08]} 27. Re7 {[%clk 0:00:56]}  Rac8 {[%clk 0:02:05]} 28. c3 {[%clk 0:00:35]}  b6 {[%clk 0:02:02]} 29. Rd4 {[%clk 0:00:31]}  a5 {[%clk 0:01:43]} 30. b3 {[%clk 0:00:30]}  a4 {[%clk 0:01:40]} 31. c4 {[%clk 0:00:30]}  axb3 {[%clk 0:01:39]} 32. axb3 {[%clk 0:00:30]}  Ba6 {[%clk 0:01:35]} 33. Ra7 {[%clk 0:00:29]}  b5 {[%clk 0:01:32]} 34. Rxa6 {[%clk 0:00:27]}  bxc4 {[%clk 0:01:27]} 35. Be6 {[%clk 0:00:23]}  cxb3 {[%clk 0:01:12]} 36. Bxc8 {[%clk 0:00:22]}  Rf1+ {[%clk 0:01:12]} 37. Kh2 {[%clk 0:00:21]}  b2 {[%clk 0:01:12]} 38. Rb6 {[%clk 0:00:20]}  b1=Q {[%clk 0:01:13]} 39. Rxb1 {[%clk 0:00:20]}  Rxb1 {[%clk 0:01:14]} 40. d6 {[%clk 0:00:21]} 1-0


[Site "https://www.chess.com"]

[Event "Titled Tuesday Blitz August 24 2021"]
[White "Zierk, Steven"]
[Black "Batsuren, Dambasuren"]
[WhiteFideId "2034255"]
[BlackFideId "4902920"]
[WhiteElo "2494"]
[BlackElo "2371"]
[Result "1-0"]
[Round "06"]
[TimeControl "180+1"]
[Date "2021.08.24"]
[WhiteClock "0:01:31"]
[BlackClock "0:01:12"]

1. e4 {[%clk 0:02:53]}  d6 {[%clk 0:03:00]} 2. d4 {[%clk 0:02:53]}  Nf6 {[%clk 0:03:01]} 3. Nc3 {[%clk 0:02:53]}  g6 {[%clk 0:03:01]} 4. Be3 {[%clk 0:02:52]}  a6 {[%clk 0:02:59]} 5. h3 {[%clk 0:02:52]}  b5 {[%clk 0:02:59]} 6. e5 {[%clk 0:02:51]}  Nfd7 {[%clk 0:02:57]} 7. Qf3 {[%clk 0:02:49]}  Ra7 {[%clk 0:02:44]} 8. O-O-O {[%clk 0:02:25]}  Bg7 {[%clk 0:02:43]} 9. h4 {[%clk 0:02:18]}  Bb7 {[%clk 0:02:32]} 10. Qg3 {[%clk 0:02:15]}  dxe5 {[%clk 0:02:25]} 11. dxe5 {[%clk 0:02:13]}  Bxe5 {[%clk 0:02:25]} 12. Qxe5 {[%clk 0:02:10]}  Nxe5 {[%clk 0:02:26]} 13. Rxd8+ {[%clk 0:02:10]}  Kxd8 {[%clk 0:02:27]} 14. Bxa7 {[%clk 0:02:11]}  Nbc6 {[%clk 0:02:27]} 15. Bc5 {[%clk 0:02:09]}  Nd7 {[%clk 0:02:23]} 16. Be3 {[%clk 0:02:08]}  e5 {[%clk 0:02:13]} 17. h5 {[%clk 0:02:07]}  Re8 {[%clk 0:02:08]} 18. hxg6 {[%clk 0:02:07]}  hxg6 {[%clk 0:02:09]} 19. Rh7 {[%clk 0:02:07]}  f5 {[%clk 0:02:08]} 20. Bg5+ {[%clk 0:02:01]}  Kc8 {[%clk 0:02:08]} 21. Nd5 {[%clk 0:01:56]}  Nd4 {[%clk 0:01:48]} 22. Rxd7 {[%clk 0:01:53]}  Kxd7 {[%clk 0:01:42]} 23. Nf6+ {[%clk 0:01:53]}  Ke7 {[%clk 0:01:43]} 24. Nxe8+ {[%clk 0:01:53]}  Kxe8 {[%clk 0:01:43]} 25. Bf6 {[%clk 0:01:53]}  Nc6 {[%clk 0:01:41]} 26. Nf3 {[%clk 0:01:53]}  e4 {[%clk 0:01:27]} 27. Ne5 {[%clk 0:01:52]}  Nb4 {[%clk 0:01:24]} 28. a3 {[%clk 0:01:45]}  Nd5 {[%clk 0:01:24]} 29. Bg5 {[%clk 0:01:45]}  f4 {[%clk 0:01:23]} 30. c4 {[%clk 0:01:44]}  bxc4 {[%clk 0:01:18]} 31. Bxc4 {[%clk 0:01:45]}  e3 {[%clk 0:01:18]} 32. fxe3 {[%clk 0:01:39]}  Nxe3 {[%clk 0:01:14]} 33. Bf7+ {[%clk 0:01:36]}  Kf8 {[%clk 0:01:14]} 34. Bb3 {[%clk 0:01:30]}  Nxg2 {[%clk 0:01:12]} 35. Nxg6+ {[%clk 0:01:30]}  Kg7 {[%clk 0:01:12]} 36. Nxf4 {[%clk 0:01:31]} 1-0


[Site "https://www.chess.com"]

[Event "Titled Tuesday Blitz August 24 2021"]
[White "Amgalantengis, Enkh-Amgalan"]
[Black "Yaran, Siar"]
[WhiteFideId "4903536"]
[BlackFideId "6323006"]
[WhiteElo "1716"]
[BlackElo "1977"]
[Result "1/2-1/2"]
[Round "07"]
[TimeControl "180+1"]
[Date "2021.08.24"]
[WhiteClock "0:01:18"]
[BlackClock "0:00:18"]

1. Nf3 {[%clk 0:02:59]}  Nf6 {[%clk 0:02:57]} 2. g3 {[%clk 0:02:59]}  d5 {[%clk 0:02:55]} 3. Bg2 {[%clk 0:03:00]}  c5 {[%clk 0:02:55]} 4. O-O {[%clk 0:03:01]}  Nc6 {[%clk 0:02:56]} 5. c4 {[%clk 0:03:02]}  e6 {[%clk 0:02:55]} 6. cxd5 {[%clk 0:03:00]}  Nxd5 {[%clk 0:02:53]} 7. d4 {[%clk 0:03:01]}  Be7 {[%clk 0:02:51]} 8. Nc3 {[%clk 0:03:01]}  O-O {[%clk 0:02:44]} 9. e4 {[%clk 0:03:01]}  Nxc3 {[%clk 0:02:43]} 10. bxc3 {[%clk 0:03:02]}  b6 {[%clk 0:02:40]} 11. d5 {[%clk 0:03:00]}  exd5 {[%clk 0:02:39]} 12. exd5 {[%clk 0:03:01]}  Na5 {[%clk 0:02:40]} 13. Ne5 {[%clk 0:02:59]}  Bf6 {[%clk 0:02:33]} 14. Bf4 {[%clk 0:02:57]}  Re8 {[%clk 0:02:29]} 15. Nc6 {[%clk 0:02:55]}  Nxc6 {[%clk 0:02:14]} 16. dxc6 {[%clk 0:02:56]}  Qxd1 {[%clk 0:02:12]} 17. Raxd1 {[%clk 0:02:54]}  Bg4 {[%clk 0:02:12]} 18. c4 {[%clk 0:02:25]}  Bxd1 {[%clk 0:02:05]} 19. Rxd1 {[%clk 0:02:26]}  Bd4 {[%clk 0:01:53]} 20. c7 {[%clk 0:02:22]}  Rac8 {[%clk 0:01:50]} 21. Bb7 {[%clk 0:02:15]}  Rxc7 {[%clk 0:01:48]} 22. Bxc7 {[%clk 0:02:13]}  Re7 {[%clk 0:01:48]} 23. Bxb6 {[%clk 0:02:05]}  Rxb7 {[%clk 0:01:42]} 24. Ba5 {[%clk 0:02:03]}  f5 {[%clk 0:01:34]} 25. Kg2 {[%clk 0:01:53]}  Kf7 {[%clk 0:01:29]} 26. Rd2 {[%clk 0:01:52]}  Rb1 {[%clk 0:01:19]} 27. Rc2 {[%clk 0:01:51]}  Rd1 {[%clk 0:01:14]} 28. Bd2 {[%clk 0:01:48]}  Kf6 {[%clk 0:01:09]} 29. h4 {[%clk 0:01:48]}  g6 {[%clk 0:01:02]} 30. Kf3 {[%clk 0:01:48]}  h5 {[%clk 0:00:49]} 31. Bg5+ {[%clk 0:01:47]}  Kf7 {[%clk 0:00:48]} 32. Re2 {[%clk 0:01:47]}  Rd3+ {[%clk 0:00:43]} 33. Kg2 {[%clk 0:01:46]}  Ra3 {[%clk 0:00:29]} 34. Re7+ {[%clk 0:01:45]}  Kf8 {[%clk 0:00:29]} 35. Re2 {[%clk 0:01:41]}  Kf7 {[%clk 0:00:29]} 36. Re7+ {[%clk 0:01:41]}  Kf8 {[%clk 0:00:29]} 37. Re2 {[%clk 0:01:41]}  Ra4 {[%clk 0:00:28]} 38. Rc2 {[%clk 0:01:39]}  Kf7 {[%clk 0:00:28]} 39. Be3 {[%clk 0:01:38]}  Bxe3 {[%clk 0:00:27]} 40. fxe3 {[%clk 0:01:39]}  Ke6 {[%clk 0:00:27]} 41. Kf3 {[%clk 0:01:39]}  Ke5 {[%clk 0:00:27]} 42. Rc3 {[%clk 0:01:23]}  Rxa2 {[%clk 0:00:25]} 43. Rd3 {[%clk 0:01:23]}  Ra5 {[%clk 0:00:25]} 44. Rd7 {[%clk 0:01:22]}  Ke6 {[%clk 0:00:23]} 45. Rg7 {[%clk 0:01:22]}  Kf6 {[%clk 0:00:22]} 46. Rc7 {[%clk 0:01:21]}  Ke5 {[%clk 0:00:20]} 47. Re7+ {[%clk 0:01:19]}  Kf6 {[%clk 0:00:19]} 48. Rc7 {[%clk 0:01:19]}  Ke5 {[%clk 0:00:19]} 49. Re7+ {[%clk 0:01:19]}  Kf6 {[%clk 0:00:18]} 50. Rc7 {[%clk 0:01:18]} 1/2-1/2


[Site "https://www.chess.com"]

[Event "Titled Tuesday Blitz August 24 2021"]
[White "Arabidze, Meri"]
[Black "Rakhmanov, Aleksandr"]
[WhiteFideId "13604040"]
[BlackFideId "4173708"]
[WhiteElo "2432"]
[BlackElo "2498"]
[Result "1/2-1/2"]
[Round "07"]
[TimeControl "180+1"]
[Date "2021.08.24"]
[WhiteClock "0:01:12"]
[BlackClock "0:00:39"]

1. Nf3 {[%clk 0:03:00]}  d5 {[%clk 0:02:53]} 2. g3 {[%clk 0:03:01]}  Nc6 {[%clk 0:02:52]} 3. d4 {[%clk 0:03:00]}  Bg4 {[%clk 0:02:51]} 4. Bg2 {[%clk 0:02:59]}  Qd7 {[%clk 0:02:52]} 5. O-O {[%clk 0:02:59]}  h5 {[%clk 0:02:52]} 6. c4 {[%clk 0:02:58]}  e6 {[%clk 0:02:47]} 7. Nc3 {[%clk 0:02:57]}  dxc4 {[%clk 0:02:46]} 8. Qa4 {[%clk 0:02:53]}  h4 {[%clk 0:02:36]} 9. Qxc4 {[%clk 0:02:51]}  hxg3 {[%clk 0:02:36]} 10. hxg3 {[%clk 0:02:51]}  Nf6 {[%clk 0:02:33]} 11. Bf4 {[%clk 0:02:48]}  a6 {[%clk 0:02:25]} 12. Ne5 {[%clk 0:02:43]}  Nxe5 {[%clk 0:02:24]} 13. dxe5 {[%clk 0:02:43]}  Nd5 {[%clk 0:02:22]} 14. Nxd5 {[%clk 0:02:42]}  exd5 {[%clk 0:02:21]} 15. Qxd5 {[%clk 0:02:36]}  Qxd5 {[%clk 0:02:20]} 16. Bxd5 {[%clk 0:02:37]}  c6 {[%clk 0:02:08]} 17. Bf3 {[%clk 0:02:36]}  Bxf3 {[%clk 0:02:06]} 18. exf3 {[%clk 0:02:37]}  Kd7 {[%clk 0:02:01]} 19. Be3 {[%clk 0:02:33]}  Ke6 {[%clk 0:02:01]} 20. f4 {[%clk 0:02:34]}  c5 {[%clk 0:01:44]} 21. Rac1 {[%clk 0:02:32]}  Rc8 {[%clk 0:01:43]} 22. b3 {[%clk 0:02:30]}  Be7 {[%clk 0:01:42]} 23. Kg2 {[%clk 0:02:28]}  b5 {[%clk 0:01:40]} 24. Rc2 {[%clk 0:02:27]}  c4 {[%clk 0:01:39]} 25. bxc4 {[%clk 0:02:26]}  Rxc4 {[%clk 0:01:40]} 26. Rxc4 {[%clk 0:02:05]}  bxc4 {[%clk 0:01:41]} 27. Kf3 {[%clk 0:02:06]}  f5 {[%clk 0:01:35]} 28. Bd4 {[%clk 0:01:42]}  Rc8 {[%clk 0:01:22]} 29. Rc1 {[%clk 0:01:35]}  Ba3 {[%clk 0:01:19]} 30. Rc2 {[%clk 0:01:35]}  Bb4 {[%clk 0:01:14]} 31. Ke3 {[%clk 0:01:31]}  a5 {[%clk 0:01:10]} 32. a4 {[%clk 0:01:28]}  g6 {[%clk 0:01:10]} 33. f3 {[%clk 0:01:28]}  Kd5 {[%clk 0:01:07]} 34. Rc1 {[%clk 0:01:19]}  Rh8 {[%clk 0:01:01]} 35. Rd1 {[%clk 0:01:14]}  Ke6 {[%clk 0:01:01]} 36. Rc1 {[%clk 0:01:13]}  Rc8 {[%clk 0:00:54]} 37. Rc2 {[%clk 0:01:11]}  Rc7 {[%clk 0:00:53]} 38. Rc1 {[%clk 0:01:12]}  Rc6 {[%clk 0:00:47]} 39. Rc2 {[%clk 0:01:11]}  Rc7 {[%clk 0:00:38]} 40. Rc1 {[%clk 0:01:11]}  Rc8 {[%clk 0:00:39]} 41. Rc2 {[%clk 0:01:12]} 1/2-1/2


[Site "https://www.chess.com"]

[Event "Titled Tuesday Blitz August 24 2021"]
[White "Baches Garcia, Guillermo"]
[Black "Ibrahimli, Murad"]
[WhiteFideId "2209764"]
[BlackFideId "13410229"]
[WhiteElo "2496"]
[BlackElo "2109"]
[Result "0-1"]
[Round "07"]
[TimeControl "180+1"]
[Date "2021.08.24"]
[WhiteClock "0:01:37"]
[BlackClock "0:01:58"]

1. e4 {[%clk 0:03:00]}  c5 {[%clk 0:02:58]} 2. Nf3 {[%clk 0:03:00]}  d6 {[%clk 0:02:59]} 3. d4 {[%clk 0:02:59]}  cxd4 {[%clk 0:02:59]} 4. Qxd4 {[%clk 0:03:00]}  Nf6 {[%clk 0:02:57]} 5. Be2 {[%clk 0:02:59]}  a6 {[%clk 0:02:53]} 6. O-O {[%clk 0:02:58]}  Nc6 {[%clk 0:02:53]} 7. Qe3 {[%clk 0:02:58]}  Bg4 {[%clk 0:02:53]} 8. Rd1 {[%clk 0:02:53]}  Nd7 {[%clk 0:02:51]} 9. Nc3 {[%clk 0:02:44]}  g6 {[%clk 0:02:47]} 10. Nd5 {[%clk 0:02:13]}  Bg7 {[%clk 0:02:44]} 11. Qf4 {[%clk 0:02:09]}  Bxf3 {[%clk 0:02:37]} 12. Bxf3 {[%clk 0:02:09]}  O-O {[%clk 0:02:37]} 13. c3 {[%clk 0:02:05]}  Nde5 {[%clk 0:02:27]} 14. Be2 {[%clk 0:02:04]}  e6 {[%clk 0:02:27]} 15. Ne3 {[%clk 0:01:57]}  Qe7 {[%clk 0:02:22]} 16. Nc4 {[%clk 0:01:51]}  Nxc4 {[%clk 0:02:12]} 17. Bxc4 {[%clk 0:01:52]}  b5 {[%clk 0:02:08]} 18. Qxd6 {[%clk 0:01:43]}  Rfd8 {[%clk 0:02:07]} 19. Qxc6 {[%clk 0:01:38]}  Rxd1+ {[%clk 0:02:05]} 20. Bf1 {[%clk 0:01:38]}  Rad8 {[%clk 0:01:58]} 21. Qxa6 {[%clk 0:01:37]}  Qd7 {[%clk 0:01:58]} 0-1


[Site "https://www.chess.com"]

[Event "Titled Tuesday Blitz August 24 2021"]
[White "Balakrishnan, Praveen"]
[Black "Lashkin, Jegor"]
[WhiteFideId "2064871"]
[BlackFideId "13907808"]
[WhiteElo "2237"]
[BlackElo "2293"]
[Result "1-0"]
[Round "07"]
[TimeControl "180+1"]
[Date "2021.08.24"]
[WhiteClock "0:01:33"]
[BlackClock "0:00:20"]

1. e4 {[%clk 0:03:00]}  c5 {[%clk 0:02:59]} 2. Nf3 {[%clk 0:02:59]}  d6 {[%clk 0:03:00]} 3. c3 {[%clk 0:02:59]}  Nf6 {[%clk 0:02:59]} 4. Bd3 {[%clk 0:02:55]}  Bg4 {[%clk 0:02:56]} 5. h3 {[%clk 0:02:52]}  Bh5 {[%clk 0:02:50]} 6. Bc2 {[%clk 0:02:53]}  Nc6 {[%clk 0:02:49]} 7. d3 {[%clk 0:02:52]}  e6 {[%clk 0:02:49]} 8. Nbd2 {[%clk 0:02:52]}  Be7 {[%clk 0:02:45]} 9. Nf1 {[%clk 0:02:49]}  d5 {[%clk 0:02:38]} 10. Ng3 {[%clk 0:02:44]}  Bg6 {[%clk 0:02:33]} 11. Nh4 {[%clk 0:02:44]}  Qc7 {[%clk 0:02:25]} 12. O-O {[%clk 0:02:42]}  O-O-O {[%clk 0:02:18]} 13. Qe2 {[%clk 0:02:39]}  Rhe8 {[%clk 0:01:52]} 14. Re1 {[%clk 0:02:19]}  Bd6 {[%clk 0:01:39]} 15. Nxg6 {[%clk 0:02:09]}  hxg6 {[%clk 0:01:38]} 16. Ba4 {[%clk 0:02:09]}  Bxg3 {[%clk 0:01:18]} 17. fxg3 {[%clk 0:02:10]}  dxe4 {[%clk 0:01:16]} 18. dxe4 {[%clk 0:02:07]}  Ne5 {[%clk 0:01:09]} 19. Bxe8 {[%clk 0:02:04]}  Rxe8 {[%clk 0:01:07]} 20. Bf4 {[%clk 0:01:57]}  Nh5 {[%clk 0:01:06]} 21. Qb5 {[%clk 0:01:56]}  Qc6 {[%clk 0:00:52]} 22. Qxc6+ {[%clk 0:01:51]}  Nxc6 {[%clk 0:00:52]} 23. Bd6 {[%clk 0:01:45]}  b6 {[%clk 0:00:51]} 24. Rad1 {[%clk 0:01:38]}  e5 {[%clk 0:00:48]} 25. Kf2 {[%clk 0:01:37]}  Nf6 {[%clk 0:00:44]} 26. b4 {[%clk 0:01:37]}  cxb4 {[%clk 0:00:28]} 27. cxb4 {[%clk 0:01:38]}  Kb7 {[%clk 0:00:28]} 28. b5 {[%clk 0:01:34]}  Na5 {[%clk 0:00:26]} 29. Rc1 {[%clk 0:01:33]}  Rc8 {[%clk 0:00:20]} 1-0


[Site "https://www.chess.com"]

[Event "Titled Tuesday Blitz August 24 2021"]
[White "Bobkov, Vadim"]
[Black "davigator"]
[WhiteFideId "34110876"]
[WhiteElo "2117"]
[BlackElo "2400"]
[Result "1-0"]
[Round "07"]
[TimeControl "180+1"]
[Date "2021.08.24"]
[WhiteClock "0:00:54"]
[BlackClock "0:01:34"]

1. d4 {[%clk 0:03:00]}  Nf6 {[%clk 0:02:55]} 2. c4 {[%clk 0:03:01]}  e6 {[%clk 0:02:55]} 3. Nc3 {[%clk 0:03:01]}  Bb4 {[%clk 0:02:55]} 4. f3 {[%clk 0:03:01]}  d5 {[%clk 0:02:54]} 5. a3 {[%clk 0:03:01]}  Bxc3+ {[%clk 0:02:53]} 6. bxc3 {[%clk 0:03:02]}  c5 {[%clk 0:02:53]} 7. cxd5 {[%clk 0:03:02]}  Nxd5 {[%clk 0:02:52]} 8. dxc5 {[%clk 0:03:02]}  f5 {[%clk 0:02:52]} 9. e4 {[%clk 0:02:57]}  fxe4 {[%clk 0:02:51]} 10. Qc2 {[%clk 0:02:57]}  e3 {[%clk 0:02:51]} 11. Bd3 {[%clk 0:02:50]}  Nc6 {[%clk 0:02:42]} 12. Ne2 {[%clk 0:02:49]}  Ne5 {[%clk 0:02:39]} 13. Be4 {[%clk 0:02:40]}  Nf6 {[%clk 0:02:08]} 14. O-O {[%clk 0:02:29]}  O-O {[%clk 0:02:06]} 15. Bxe3 {[%clk 0:02:26]}  Qe7 {[%clk 0:02:06]} 16. Ng3 {[%clk 0:01:55]}  Ned7 {[%clk 0:02:03]} 17. c6 {[%clk 0:01:52]}  bxc6 {[%clk 0:02:03]} 18. Bxc6 {[%clk 0:01:52]}  Rb8 {[%clk 0:02:04]} 19. Bxa7 {[%clk 0:01:44]}  Bb7 {[%clk 0:01:54]} 20. Bxb8 {[%clk 0:01:35]}  Bxc6 {[%clk 0:01:54]} 21. Ba7 {[%clk 0:01:31]}  Nc5 {[%clk 0:01:53]} 22. Bxc5 {[%clk 0:01:27]}  Qxc5+ {[%clk 0:01:52]} 23. Qf2 {[%clk 0:01:27]}  Qa5 {[%clk 0:01:46]} 24. c4 {[%clk 0:01:22]}  Rc8 {[%clk 0:01:40]} 25. c5 {[%clk 0:01:11]}  Bd5 {[%clk 0:01:38]} 26. Rfc1 {[%clk 0:01:08]}  Nd7 {[%clk 0:01:38]} 27. Ne4 {[%clk 0:00:59]}  Bxe4 {[%clk 0:01:34]} 28. fxe4 {[%clk 0:00:59]}  Rxc5 {[%clk 0:01:34]} 29. Rxc5 {[%clk 0:00:58]}  Nxc5 {[%clk 0:01:34]} 30. Rc1 {[%clk 0:00:54]} 1-0


[Site "https://www.chess.com"]